fUSD/lending_fUSD_20250328
["ID","MTS","AMOUNT","RATE_DAILY","PERIOD"]
[356764928,1743137458426,-500.0,0.00032528,7]
[356764930,1743137458435,-500.0,0.00032528,7]
[356764931,1743137458444,-500.0,0.00032528,7]
[356764933,1743137458453,-500.0,0.00032528,7]
[356764935,1743137458463,-500.0,0.00032528,7]
[356764937,1743137458472,-500.0,0.00032528,7]
[356764939,1743137458481,-500.0,0.00032528,7]
[356764941,1743137458491,-500.0,0.00032528,7]
[356764943,1743137458500,-500.0,0.00032528,7]
[356764945,1743137458509,-500.0,0.00032528,7]
[356764947,1743137458518,-301.26079963,0.00032528,7]
[356764949,1743137458528,-504.48244074,0.00032528,7]
[356764951,1743137458537,-200.0,0.00032528,7]
[356764953,1743137458547,-200.0,0.00032528,7]
[356764955,1743137458556,-217.30718412,0.00032528,7]
[356764957,1743137458566,-187.14580366,0.00032528,12]
[356764959,1743137458575,-500.0,0.00032528,7]
[356764961,1743137458584,-526.59836435,0.00032528,7]
[356764963,1743137458595,-500.0,0.00032528,2]
[356764965,1743137458604,-168.89726187,0.00032528,2]
[356764967,1743137458614,-1772.42,0.00032528,2]
[356764968,1743137458627,-1772.42,0.00032528,2]
[356764970,1743137458636,-1772.42,0.00032528,2]
[356764972,1743137458645,-1772.42,0.00032528,2]
[356764974,1743137458654,-1772.42,0.00032528,2]
[356764976,1743137458663,-1772.42,0.00032528,2]
[356764978,1743137458673,-1772.42,0.00032528,2]
[356764980,1743137458683,-1772.42,0.00032528,2]
[356764982,1743137458692,-1772.42,0.00032528,2]
[356764985,1743137458702,-1772.42,0.00032528,2]
[356764987,1743137458711,-1772.42,0.00032528,2]
[356764989,1743137458721,-1772.42,0.00032528,2]
[356764991,1743137458731,-1772.42,0.00032528,2]
[356764993,1743137458741,-1772.42,0.00032528,2]
[356764995,1743137458751,-1772.42,0.00032528,2]
[356764997,1743137458760,-1772.42,0.00032528,2]
[356764999,1743137458770,-1772.42,0.00032528,2]
[356765001,1743137458779,-1772.42,0.00032528,2]
[356765003,1743137458789,-1772.42,0.00032528,2]
[356765004,1743137458799,-1772.42,0.00032528,2]
[356765006,1743137458809,-1772.42,0.00032528,2]
[356765009,1743137458819,-1772.42,0.00032528,2]
[356765011,1743137458829,-1772.42,0.00032528,2]
[356765013,1743137458839,-1772.45166068,0.00032528,2]
[356765014,1743137458848,-250000.0,0.00032533,30]
[356765017,1743137458860,-167.0,0.00032534,30]
[356765018,1743137458875,-150.0,0.00032534,2]
[356765021,1743137458888,-235.2635053,0.00032535,30]
[356765023,1743137458897,-5683.740983,0.00032536,30]
[356765025,1743137458907,-173.10075,0.00032537,2]
[356765027,1743137458918,-173.88975,0.00032537,2]
[356765029,1743137458929,-4133.63,0.00032539,2]
[356765031,1743137458939,-4133.63,0.00032539,2]
[356765033,1743137458948,-4133.63,0.00032539,2]
[356765035,1743137458960,-4133.63,0.00032539,2]
[356765037,1743137458970,-4133.63,0.00032539,2]
[356765039,1743137458980,-4133.63,0.00032539,2]
[356765041,1743137458989,-4133.63,0.00032539,2]
[356765043,1743137458999,-4133.63,0.00032539,2]
[356765045,1743137459008,-4133.63,0.00032539,2]
[356765047,1743137459019,-4133.63,0.00032539,2]
[356765048,1743137459028,-4133.63,0.00032539,2]
[356765050,1743137459038,-4133.63,0.00032539,2]
[356765053,1743137459047,-4133.63,0.00032539,2]
[356765055,1743137459057,-4133.63,0.00032539,2]
[356765057,1743137459067,-4133.63,0.00032539,2]
[356765059,1743137459079,-4133.63,0.00032539,2]
[356765061,1743137459088,-4133.63,0.00032539,2]
[356765063,1743137459097,-4133.63,0.00032539,2]
[356765065,1743137459107,-4133.73464921,0.00032539,2]
[356765066,1743137459117,-206.68,0.00032539,2]
[356765068,1743137459127,-206.68,0.00032539,2]
[356765070,1743137459136,-206.68,0.00032539,2]
[356765072,1743137459146,-206.68,0.00032539,2]
[356765074,1743137459157,-206.68,0.00032539,2]
[356765077,1743137459167,-206.68,0.00032539,2]
[356765078,1743137459176,-206.68,0.00032539,2]
[356765081,1743137459186,-206.68,0.00032539,2]
[356765083,1743137459195,-206.68,0.00032539,2]
[356765084,1743137459205,-206.68,0.00032539,2]
[356765087,1743137459215,-206.68,0.00032539,2]
[356765088,1743137459225,-206.68,0.00032539,2]
[356765091,1743137459235,-206.68,0.00032539,2]
[356765092,1743137459244,-206.68,0.00032539,2]
[356765094,1743137459254,-206.68,0.00032539,2]
[356765096,1743137459263,-206.68,0.00032539,2]
[356765099,1743137459273,-206.68,0.00032539,2]
[356765100,1743137459282,-206.68,0.00032539,2]
[356765102,1743137459291,-206.68,0.00032539,2]
[356765104,1743137459300,-206.71,0.00032539,2]
[356765106,1743137459310,-184.89153936,0.00032568,2]
[356765108,1743137459319,-179.009756,0.00032568,30]
[356765110,1743137459328,-400.0,0.0003257,2]
[356765112,1743137459337,-190.378104,0.00032579,30]
[356765114,1743137459347,-194.943131,0.00032579,30]
[356765116,1743137459357,-233.62,0.000326,2]
[356765118,1743137459369,-5000.0,0.00032639,30]
[356765120,1743137459379,-267.22,0.00032646,2]
[356765122,1743137459388,-702.83,0.00032646,2]
[356765124,1743137459397,-151.0,0.00032877,7]
[356765126,1743137459407,-151.0,0.00032877,7]
[356765128,1743137459416,-151.921187,0.00032877,7]
[356765130,1743137459426,-4566.46,0.00032877,2]
[356765132,1743137459435,-210.0,0.0003288,2]
[356765134,1743137459445,-1000.0,0.00032885,5]
[356765136,1743137459455,-353.13251301,0.00032885,5]
[356765138,1743137459464,-300.0,0.00032885,5]
[356765140,1743137459474,-418.87033611,0.00033,10]
[356765142,1743137459485,-450.0,0.00033,2]
[356765145,1743137459494,-211.0,0.00033,2]
[356765147,1743137459504,-150.0,0.00033018,2]
[356765149,1743137459513,-900.0,0.00033426,60]
[356765151,1743137459523,-8305.56203909,0.00033439,2]
[356765153,1743137459533,-1680.87657127,0.00033442,2]
[356765155,1743137459542,-170.65,0.00033462,2]
[356765157,1743137459551,-152.08,0.000335,31]
[356765159,1743137459561,-152.08,0.000335,31]
[356765161,1743137459570,-152.08,0.000335,31]
[356765163,1743137459579,-152.08,0.000335,31]
[356765165,1743137459589,-152.08,0.000335,31]
[356765167,1743137459599,-152.08,0.000335,31]
[356765169,1743137459609,-152.08,0.000335,31]
[356765171,1743137459620,-152.08,0.000335,31]
[356765173,1743137459630,-152.08,0.000335,31]
[356765175,1743137459640,-177.41,0.00033669,120]
[356765177,1743137459650,-210.0,0.0003399,2]
[356765179,1743137459659,-418.87033611,0.00034,10]
[356765181,1743137459669,-1210.12,0.00034358,2]
[356765183,1743137459679,-150.0,0.00034388,2]
[356765185,1743137459689,-740.0,0.00034428,2]
[356765187,1743137459698,-900.0,0.00034522,60]
[356765189,1743137459708,-150.0,0.00034548,10]
[356765191,1743137459718,-170.65,0.00034624,2]
[356765193,1743137459727,-418.87033611,0.00035,10]
[356765195,1743137459737,-2856.62565727,0.00035,2]
[356765197,1743137459747,-500.0,0.00035,2]
[356765199,1743137459757,-879.05,0.00035068,2]
[356765201,1743137459766,-210.0,0.000351,2]
[356765203,1743137459776,-2000.0,0.000351,2]
[356765205,1743137459785,-14423.15325376,0.0003511,30]
[356765207,1743137459795,-800.0,0.00035173,7]
[356765209,1743137459804,-800.0,0.00035242,7]
[356765211,1743137459814,-500.0,0.00035266,7]
[356765213,1743137459823,-500.0,0.00035281,7]
[356765215,1743137459833,-500.0,0.00035411,7]
[356765217,1743137459843,-800.0,0.00035431,7]
[356765219,1743137459852,-500.0,0.00035564,7]
[356765221,1743137459862,-500.0,0.00035578,7]
[356765223,1743137459874,-150.0,0.00035616,2]
[356765225,1743137459889,-500.0,0.00035617,7]
[356765226,1743137459898,-900.0,0.00035618,60]
[356765227,1743137459908,-500.0,0.0003563,7]
[356765228,1743137459917,-500.0,0.00035697,7]
[356765229,1743137459928,-500.0,0.00035706,7]
[356765230,1743137459938,-150.0,0.00035758,2]
[356765231,1743137459948,-500.0,0.0003578,7]
[356765232,1743137459958,-170.66,0.00035786,2]
[356765233,1743137459967,-418.87033611,0.00036,10]
[356765234,1743137459977,-211.0,0.00036,2]
[356765235,1743137459987,-500.0,0.00036097,7]
[356765236,1743137459996,-700.87,0.000361,7]
[356765237,1743137460006,-152.08,0.000361,31]
[356765238,1743137460016,-152.08,0.000361,31]
[356765239,1743137460026,-152.08,0.000361,31]
[356765240,1743137460036,-152.08,0.000361,31]
[356765241,1743137460046,-152.08,0.000361,31]
[356765242,1743137460056,-152.08,0.000361,31]
[356765243,1743137460067,-152.08,0.000361,31]
[356765254,1743137460172,-152.08,0.000361,31]
[356765256,1743137460182,-152.08,0.000361,31]
[356765258,1743137460192,-152.08,0.000361,31]
[356765260,1743137460202,-152.08,0.000361,31]
[356765262,1743137460212,-152.08,0.000361,31]
[356765264,1743137460222,-152.08,0.000361,31]
[356765266,1743137460232,-152.08,0.000361,31]
[356765268,1743137460242,-152.08,0.000361,31]
[356765270,1743137460252,-152.08,0.000361,31]
[356765272,1743137460262,-152.08,0.000361,31]
[356765275,1743137460272,-152.08,0.000361,31]
[356765276,1743137460281,-500.0,0.00036118,7]
[356765279,1743137460290,-500.0,0.00036129,7]
[356765281,1743137460299,-500.0,0.00036149,7]
[356765282,1743137460308,-500.0,0.00036154,7]
[356765285,1743137460318,-500.0,0.000362,7]
[356765287,1743137460327,-500.0,0.00036206,7]
[356765288,1743137460336,-210.0,0.0003621,2]
[356765290,1743137460345,-500.0,0.00036286,7]
[356765292,1743137460354,-501.28875484,0.00036337,7]
[356765294,1743137460364,-500.0,0.00036402,7]
[356765296,1743137460375,-500.0,0.00036408,7]
[356765298,1743137460384,-800.0,0.0003646,7]
[356765300,1743137460393,-500.0,0.00036481,7]
[356765302,1743137460402,-407.42367505,0.000365,30]
[356765304,1743137460411,-800.0,0.00036507,7]
[356765306,1743137460421,-500.0,0.00036509,7]
[356765308,1743137460430,-500.0,0.0003652,7]
[356765310,1743137460440,-8305.56203909,0.00036526,2]
[356765312,1743137460450,-1680.87657127,0.00036528,2]
[356765314,1743137460460,-150.0,0.00036554,2]
[356765316,1743137460469,-1210.12,0.00036622,2]
[356765318,1743137460478,-900.0,0.00036714,60]
[356765320,1743137460487,-500.0,0.00036745,7]
[356765322,1743137460497,-800.0,0.00036752,7]
[356765324,1743137460506,-500.0,0.00036804,7]
[356765326,1743137460515,-500.0,0.00036864,7]
[356765328,1743137460524,-500.0,0.00036941,7]
[356765330,1743137460534,-252.2,0.00036986,3]
[356765332,1743137460543,-418.87033611,0.00037,10]
[356765334,1743137460552,-550.0,0.00037,2]
[356765336,1743137460561,-800.0,0.000371,7]
[356765338,1743137460571,-150.0,0.00037128,2]
[356765340,1743137460580,-800.0,0.00037159,7]
[356765342,1743137460589,-500.0,0.00037245,7]
[356765344,1743137460598,-500.0,0.00037254,7]
[356765346,1743137460607,-507.00211515,0.00037309,7]
[356765348,1743137460619,-210.0,0.0003733,2]
[356765350,1743137460628,-500.0,0.00037341,7]
[356765352,1743137460637,-500.0,0.00037406,7]
[356765354,1743137460646,-500.0,0.00037413,7]
[356765356,1743137460655,-1000.0,0.00037419,7]
[356765358,1743137460664,-300.0,0.00037419,7]
[356765360,1743137460673,-150.0,0.00037491,2]
[356765363,1743137460689,-252.2,0.00037726,3]
[356765366,1743137460702,-200.25868094,0.00037745,7]
[356765368,1743137460712,-500.0,0.00037779,7]
[356765370,1743137460724,-2000.0,0.000378,2]
[356765372,1743137460734,-152.49346938,0.000378,2]
[356765374,1743137460744,-900.0,0.0003781,60]
[356765376,1743137460754,-500.0,0.00037865,7]
[356765378,1743137460764,-800.0,0.0003795,7]
[356765380,1743137460774,-418.87033611,0.00038,10]
[356765382,1743137460783,-205.48476365,0.00038,120]
[356765384,1743137460792,-169.6114886,0.00038,120]
[356765386,1743137460802,-300.0,0.00038,2]
[356765388,1743137460811,-500.0,0.00038045,7]
[356765390,1743137460821,-800.0,0.00038052,7]
[356765393,1743137460831,-800.0,0.00038088,7]
[356765394,1743137460840,-177.41,0.00038147,120]
[356765397,1743137460850,-152.14,0.00038212,2]
[356765398,1743137460859,-500.0,0.00038268,7]
[356765401,1743137460872,-500.0,0.00038331,7]
[356765403,1743137460884,-500.0,0.00038349,7]
[356765405,1743137460897,-150.0,0.00038356,2]
[356765407,1743137460906,-299.69965511,0.00038356,2]
[356765409,1743137460917,-500.0,0.00038356,2]
[356765411,1743137460927,-179.4917332,0.00038356,2]
[356765413,1743137460936,-300.0,0.0003838,2]
[356765415,1743137460946,-500.10509213,0.00038382,7]
[356765417,1743137460958,-150.0,0.00038383,2]
[356765419,1743137460968,-500.0,0.00038383,2]
[356765422,1743137460978,-500.0,0.00038385,7]
[356765424,1743137460987,-500.0,0.00038399,7]
[356765426,1743137460996,-150.0,0.00038411,2]
[356765428,1743137461006,-500.0,0.00038411,2]
[356765430,1743137461016,-150.0,0.00038428,2]
[356765432,1743137461025,-224.21211953,0.00038438,2]
[356765434,1743137461035,-500.0,0.00038438,2]
[356765436,1743137461044,-210.0,0.0003844,2]
[356765438,1743137461054,-207.0,0.0003844,30]
[356765439,1743137461063,-267.22,0.00038443,2]
[356765442,1743137461074,-702.83,0.00038443,2]
[356765444,1743137461084,-500.0,0.00038466,2]
[356765446,1743137461094,-252.2,0.00038466,3]
[356765448,1743137461104,-500.0,0.00038483,7]
[356765450,1743137461113,-500.0,0.00038493,2]
[356765452,1743137461126,-150.0,0.00038498,2]
[356765454,1743137461136,-943.99,0.000385,2]
[356765456,1743137461146,-157.74688104,0.00038516,7]
[356765458,1743137461155,-500.0,0.0003852,2]
[356765460,1743137461165,-500.0,0.00038533,7]
[356765462,1743137461175,-500.0,0.00038548,2]
[356765464,1743137461184,-696.38191583,0.00038575,2]
[356765466,1743137461194,-152.08,0.000386,31]
[356765468,1743137461204,-152.08,0.000386,31]
[356765470,1743137461214,-152.08,0.000386,31]
[356765472,1743137461224,-152.08,0.000386,31]
[356765474,1743137461234,-152.08,0.000386,31]
[356765476,1743137461244,-152.08,0.000386,31]
[356765478,1743137461254,-152.08,0.000386,31]
[356765480,1743137461263,-152.08,0.000386,31]
[356765482,1743137461274,-152.08,0.000386,31]
[356765484,1743137461284,-152.08,0.000386,31]
[356765486,1743137461293,-152.08,0.000386,31]
[356765488,1743137461302,-152.08,0.000386,31]
[356765490,1743137461311,-152.08,0.000386,31]
[356765492,1743137461320,-152.08,0.000386,31]
[356765494,1743137461330,-152.08,0.000386,31]
[356765496,1743137461339,-152.08,0.000386,31]
[356765498,1743137461348,-152.08,0.000386,31]
[356765500,1743137461358,-152.08,0.000386,31]
[356765502,1743137461369,-800.0,0.00038618,7]
[356765504,1743137461379,-500.0,0.00038736,7]
[356765506,1743137461388,-500.0,0.00038756,7]
[356765508,1743137461398,-500.0,0.00038834,7]
[356765510,1743137461407,-800.0,0.00038849,7]
[356765512,1743137461417,-500.0,0.00038876,7]
[356765513,1743137461426,-1210.12,0.00038885,2]
[356765515,1743137461435,-1183.0105,0.00038888,30]
[356765517,1743137461444,-900.0,0.00038906,60]
[356765518,1743137461454,-500.0,0.00038934,7]
[356765520,1743137461464,-500.0,0.00038939,7]
[356765522,1743137461474,-1000.0,0.00039,3]
[356765524,1743137461483,-418.87033611,0.00039,10]
[356765525,1743137461492,-923.87900186,0.00039,120]
[356765527,1743137461502,-600.0,0.00039,2]
[356765529,1743137461511,-211.0,0.00039,2]
[356765530,1743137461520,-800.0,0.00039017,7]
[356765532,1743137461530,-500.0,0.00039032,7]
[356765534,1743137461539,-500.0,0.00039068,60]
[356765535,1743137461548,-500.0,0.00039139,7]
[356765537,1743137461558,-500.0,0.00039148,7]
[356765539,1743137461567,-252.2,0.00039205,3]
[356765540,1743137461576,-3079.29020012,0.00039275,11]
[356765542,1743137461585,-2152.99746996,0.00039275,11]
[356765544,1743137461595,-500.0,0.00039299,7]
[356765545,1743137461604,-500.0,0.00039306,7]
[356765547,1743137461613,-501.44955192,0.00039313,7]
[356765549,1743137461624,-653.04658917,0.00039323,7]
[356765551,1743137461634,-500.0,0.00039325,7]
[356765553,1743137461643,-150.0,0.00039366,2]
[356765554,1743137461652,-362.66438882,0.00039382,7]
[356765556,1743137461662,-800.0,0.00039469,7]
[356765558,1743137461671,-210.0,0.0003955,2]
[356765560,1743137461680,-207.0,0.0003955,30]
[356765561,1743137461690,-500.0,0.00039582,7]
[356765563,1743137461699,-800.0,0.0003959,7]
[356765565,1743137461708,-8305.56203909,0.00039614,2]
[356765566,1743137461717,-1680.87657127,0.00039615,2]
[356765568,1743137461726,-800.0,0.00039757,7]
[356765570,1743137461736,-500.0,0.00039863,7]
[356765571,1743137461745,-150.0,0.00039868,2]
[356765573,1743137461754,-500.0,0.00039885,7]
[356765575,1743137461763,-500.0,0.0003989,7]
[356765577,1743137461772,-252.2,0.00039945,3]
[356765579,1743137461782,-500.0,0.00039972,7]
[356765580,1743137461791,-500.0,0.00039973,7]
[356765582,1743137461800,-500.0,0.00039999,7]
[356765584,1743137461809,-1000.0,0.0004,8]
[356765585,1743137461818,-418.87033611,0.0004,10]
[356765587,1743137461827,-6133.17418956,0.0004,30]
[356765589,1743137461837,-724.0,0.0004,120]
[356765591,1743137461846,-518.63248503,0.0004,120]
[356765592,1743137461855,-205.48476365,0.0004,120]
[356765594,1743137461864,-169.6114886,0.0004,120]
[356765596,1743137461877,-900.0,0.00040002,60]
[356765598,1743137461888,-800.0,0.00040006,30]
[356765600,1743137461898,-509.61455883,0.0004002,30]
[356765601,1743137461907,-500.0,0.00040024,30]
[356765603,1743137461918,-500.0,0.00040083,30]
[356765605,1743137461927,-500.0,0.00040164,60]
[356765607,1743137461937,-500.0,0.00040167,30]
[356765608,1743137461947,-800.0,0.00040202,30]
[356765610,1743137461958,-500.0,0.00040236,30]
[356765612,1743137461969,-150.0,0.00040303,2]
[356765614,1743137461979,-500.0,0.00040494,30]
[356765616,1743137461988,-2000.0,0.000405,2]
[356765617,1743137461997,-800.0,0.00040554,30]
[356765619,1743137462006,-500.0,0.0004059,30]
[356765621,1743137462015,-500.0,0.00040659,30]
[356765623,1743137462025,-210.0,0.0004066,2]
[356765624,1743137462034,-207.0,0.0004066,30]
[356765626,1743137462043,-500.0,0.0004069,30]
[356765628,1743137462052,-500.0,0.00040692,30]
[356765630,1743137462062,-500.0,0.00040775,30]
[356765631,1743137462071,-800.0,0.00040837,30]
[356765633,1743137462080,-943.99,0.000409,2]
[356765635,1743137462089,-218.71,0.000409,2]
[356765637,1743137462098,-500.0,0.00040927,30]
[356765639,1743137462107,-964.62637,0.00041,120]
[356765640,1743137462119,-1001.0,0.00041,6]
[356765642,1743137462129,-1000.0,0.00041,2]
[356765644,1743137462139,-418.87033611,0.00041,10]
[356765646,1743137462148,-217.98498742,0.00041,30]
[356765648,1743137462157,-650.0,0.00041,2]
[356765649,1743137462167,-169.0,0.00041,14]
[356765651,1743137462176,-246.28479498,0.00041046,30]
[356765653,1743137462185,-900.0,0.00041098,60]
[356765655,1743137462195,-1210.12,0.00041149,2]
[356765657,1743137462204,-500.0,0.00041178,30]
[356765658,1743137462213,-1910.3727595,0.00041184,2]
[356765660,1743137462222,-154.0,0.000412,28]
[356765662,1743137462231,-152.08,0.000412,31]
[356765664,1743137462240,-152.08,0.000412,31]
[356765666,1743137462250,-152.08,0.000412,31]
[356765667,1743137462259,-152.08,0.000412,31]
[356765669,1743137462268,-152.08,0.000412,31]
[356765671,1743137462277,-152.08,0.000412,31]
[356765673,1743137462288,-152.08,0.000412,31]
[356765674,1743137462297,-152.08,0.000412,31]
[356765676,1743137462306,-152.08,0.000412,31]
[356765678,1743137462315,-152.08,0.000412,31]
[356765679,1743137462325,-152.08,0.000412,31]
[356765680,1743137462334,-152.08,0.000412,31]
[356765681,1743137462345,-152.08,0.000412,31]
[356765682,1743137462355,-152.08,0.000412,31]
[356765683,1743137462365,-152.08,0.000412,31]
[356765684,1743137462378,-152.08,0.000412,31]
[356765686,1743137462387,-152.08,0.000412,31]
[356765687,1743137462397,-152.08,0.000412,31]
[356765688,1743137462406,-500.0,0.00041217,30]
[356765689,1743137462415,-500.0,0.00041218,30]
[356765690,1743137462424,-3588.92681784,0.00041235,120]
[356765691,1743137462433,-150.0,0.00041238,120]
[356765692,1743137462443,-150.0,0.0004124,2]
[356765693,1743137462452,-500.0,0.0004126,60]
[356765694,1743137462461,-800.0,0.00041322,30]
[356765695,1743137462470,-500.0,0.00041488,30]
[356765696,1743137462481,-800.0,0.00041488,30]
[356765697,1743137462595,-500.0,0.00041508,30]
[356765698,1743137462605,-500.0,0.00041545,30]
[356765699,1743137462615,-112903.16971948,0.0004165,7]
[356765700,1743137462625,-500.0,0.00041718,30]
[356765701,1743137462634,-500.0,0.00041734,30]
[356765702,1743137462643,-800.0,0.00041765,30]
[356765703,1743137462652,-210.0,0.0004178,2]
[356765704,1743137462661,-207.0,0.0004178,30]
[356765705,1743137462670,-800.0,0.00041841,30]
[356765706,1743137462680,-501.44729016,0.00041852,30]
[356765707,1743137462689,-500.0,0.00041876,30]
[356765708,1743137462698,-500.0,0.00041926,30]
[356765709,1743137462707,-500.0,0.00041949,30]
[356765710,1743137462717,-1000.0,0.00041953,10]
[356765711,1743137462726,-300.0,0.00041953,10]
[356765712,1743137462735,-40997.6153773,0.00042,2]
[356765713,1743137462744,-19415.07462981,0.00042,2]
[356765714,1743137462753,-1000.0,0.00042,120]
[356765715,1743137462762,-1003.0,0.00042,120]
[356765716,1743137462772,-1299.74,0.00042,60]
[356765717,1743137462781,-1000.0,0.00042,2]
[356765718,1743137462790,-24513.87843599,0.00042,120]
[356765719,1743137462798,-619.0,0.00042,120]
[356765720,1743137462807,-1324.26006753,0.00042,30]
[356765721,1743137462816,-281.41708085,0.00042,120]
[356765722,1743137462825,-630.4,0.00042,120]
[356765723,1743137462835,-272.86,0.00042,120]
[356765724,1743137462844,-716.58,0.00042,120]
[356765725,1743137462853,-262.34,0.00042,120]
[356765726,1743137462862,-167.11,0.00042,120]
[356765727,1743137462872,-248.58,0.00042,120]
[356765728,1743137462884,-218.41,0.00042,120]
[356765729,1743137462894,-211.0,0.00042,2]
[356765730,1743137462903,-1328.70962439,0.0004201,2]
[356765731,1743137462914,-582.0,0.000421,3]
[356765732,1743137462924,-943.99,0.000421,2]
[356765733,1743137462934,-203.32,0.000421,120]
[356765734,1743137462943,-800.0,0.00042107,30]
[356765735,1743137462955,-500.0,0.00042147,30]
[356765736,1743137462964,-150.0,0.00042177,2]
[356765737,1743137462974,-306.50068498,0.00042194,60]
[356765738,1743137462984,-500.0,0.00042205,30]
[356765739,1743137462993,-500.0,0.00042356,60]
[356765740,1743137463002,-82995.09786472,0.000424,2]
[356765741,1743137463012,-500.0,0.00042467,30]
[356765742,1743137463021,-244.53063465,0.00042607,120]
[356765743,1743137463031,-177.41,0.00042625,120]
[356765744,1743137463041,-500.0,0.00042635,30]
[356765745,1743137463051,-8518.21035152,0.00042664,2]
[356765746,1743137463062,-1680.87657127,0.00042701,15]
[356765747,1743137463073,-8305.56203909,0.00042701,15]
[356765748,1743137463083,-80709.51224715,0.0004273,3]
[356765749,1743137463093,-2286.74246719,0.000428,60]
[356765750,1743137463103,-1003283.4057007,0.000428,120]
[356765751,1743137463113,-7570.0,0.000428,12]
[356765752,1743137463124,-500.0,0.0004282,30]
[356765753,1743137463133,-210.0,0.0004289,2]
[356765754,1743137463143,-207.0,0.0004289,30]
[356765755,1743137463153,-298.36270482,0.000429,10]
[356765756,1743137463163,-500.0,0.00042905,30]
[356765757,1743137463173,-468821.204568,0.0004298,30]
[356765758,1743137463182,-1386.26784451,0.0004298,30]
[356765759,1743137463192,-500.0,0.00042993,30]
[356765760,1743137463202,-214.0,0.00043,7]
[356765761,1743137463217,-6000.0,0.00043,120]
[356765762,1743137463227,-1000.0,0.00043,2]
[356765763,1743137463236,-1501.0,0.00043,120]
[356765764,1743137463246,-173.78102557,0.00043,120]
[356765765,1743137463256,-329.0,0.00043,120]
[356765766,1743137463265,-410.96952729,0.00043,120]
[356765767,1743137463275,-339.2229772,0.00043,120]
[356765768,1743137463284,-700.0,0.00043,2]
[356765769,1743137463294,-500.0,0.00043023,30]
[356765770,1743137463303,-500.0,0.00043066,30]
[356765771,1743137463313,-712.26658795,0.00043078,30]
[356765772,1743137463322,-150.0,0.00043115,2]
[356765773,1743137463332,-169.0,0.00043151,90]
[356765774,1743137463345,-500.0,0.00043227,30]
[356765775,1743137463356,-533.7596426,0.00043254,30]
[356765776,1743137463365,-2000.0,0.000433,2]
[356765777,1743137463377,-897.99235476,0.00043407,30]
[356765778,1743137463386,-1210.12,0.00043413,2]
[356765779,1743137463396,-500.0,0.00043452,60]
[356765780,1743137463406,-575.20325669,0.00043492,30]
[356765781,1743137463416,-500.0,0.00043556,30]
[356765782,1743137463426,-234.10168929,0.000436,120]
[356765783,1743137463436,-943.99,0.000437,2]
[356765784,1743137463445,-925.26017135,0.00043784,30]
[356765785,1743137463455,-2332.0,0.00043787,53]
[356765786,1743137463465,-503.62329721,0.00043796,30]
[356765787,1743137463475,-582.35999098,0.000438,120]
[356765788,1743137463484,-152.08,0.000438,36]